[Event "*** Titled Tuesday Blitz"]
[Site "Chess.com"]
[Date "2021.02.09"]
[Round "6"]
[White "jamalm2"]
[Black "night_player"]
[Result "1/2-1/2"]
[WhiteElo "1946"]
[BlackElo "2235"]
[TimeControl "180+1"]
[EndTime "11:08:56 PST"]
[Termination "Game drawn by repetition"]

1. e4 {[%clk 0:03:00.9]} 1... c5 {[%clk 0:03:00.4]} 2. Nf3 {[%clk 0:02:59.3]}
2... Nc6 {[%clk 0:02:59.6]} 3. d4 {[%clk 0:02:58.8]} 3... cxd4 {[%clk
0:02:59.9]} 4. Nxd4 {[%clk 0:02:58.5]} 4... e5 {[%clk 0:03:00.5]} 5. Nb5 {[%clk
0:02:57.2]} 5... d6 {[%clk 0:03:01.1]} 6. c4 {[%clk 0:02:53.3]} 6... Be7 {[%clk
0:03:00.5]} 7. N1c3 {[%clk 0:02:52]} 7... a6 {[%clk 0:03:01]} 8. Na3 {[%clk
0:02:50.6]} 8... Be6 {[%clk 0:02:59.2]} 9. Nd5 {[%clk 0:02:47.9]} 9... Bxd5
{[%clk 0:02:55.5]} 10. cxd5 {[%clk 0:02:44]} 10... Nb8 {[%clk 0:02:55]} 11. Be2
{[%clk 0:02:39.6]} 11... Bg5 {[%clk 0:02:54.4]} 12. O-O {[%clk 0:02:37.4]} 12...
Bxc1 {[%clk 0:02:52.8]} 13. Rxc1 {[%clk 0:02:35.3]} 13... Nf6 {[%clk 0:02:52]}
14. Qa4+ {[%clk 0:02:34.5]} 14... Nbd7 {[%clk 0:02:50.4]} 15. Nc4 {[%clk
0:02:28.8]} 15... O-O {[%clk 0:02:25.7]} 16. Nxd6 {[%clk 0:02:22.4]} 16... b5
{[%clk 0:02:24.7]} 17. Qa3 {[%clk 0:02:17.5]} 17... Nb6 {[%clk 0:02:18.4]} 18.
Nb7 {[%clk 0:02:14]} 18... Qe8 {[%clk 0:02:09.9]} 19. Na5 {[%clk 0:02:12.8]}
19... Nxe4 {[%clk 0:02:08.8]} 20. Bf3 {[%clk 0:02:06.8]} 20... Nd2 {[%clk
0:02:09]} 21. Rfd1 {[%clk 0:02:02]} 21... Ndc4 {[%clk 0:02:01.2]} 22. Nxc4
{[%clk 0:02:00.5]} 22... Nxc4 {[%clk 0:02:02.1]} 23. Qb3 {[%clk 0:01:54.2]}
23... Rd8 {[%clk 0:01:55.2]} 24. a4 {[%clk 0:01:51.1]} 24... Nd6 {[%clk
0:01:42.9]} 25. axb5 {[%clk 0:01:50.5]} 25... Qxb5 {[%clk 0:01:39.3]} 26. Qxb5
{[%clk 0:01:38.7]} 26... Nxb5 {[%clk 0:01:40.2]} 27. Rc6 {[%clk 0:01:34.6]}
27... Rd6 {[%clk 0:01:34]} 28. Ra1 {[%clk 0:01:26.1]} 28... Ra8 {[%clk
0:01:22.6]} 29. g3 {[%clk 0:01:20.6]} 29... g6 {[%clk 0:01:21]} 30. Rxd6 {[%clk
0:01:15.8]} 30... Nxd6 {[%clk 0:01:20.7]} 31. Be2 {[%clk 0:01:16.2]} 31... a5
{[%clk 0:01:20.3]} 32. f3 {[%clk 0:01:13.1]} 32... Kf8 {[%clk 0:01:19.8]} 33.
Bd3 {[%clk 0:01:12.5]} 33... Ke7 {[%clk 0:01:19.7]} 34. Kf2 {[%clk 0:01:12.4]}
34... Nf5 {[%clk 0:01:16.3]} 35. Bxf5 {[%clk 0:01:07.2]} 35... gxf5 {[%clk
0:01:17.2]} 36. Ke3 {[%clk 0:01:06.5]} 36... Kd6 {[%clk 0:01:17.5]} 37. Rd1
{[%clk 0:01:01.8]} 37... a4 {[%clk 0:01:16.2]} 38. f4 {[%clk 0:01:00.4]} 38...
e4 {[%clk 0:01:15.1]} 39. Rd4 {[%clk 0:00:50.5]} 39... a3 {[%clk 0:01:12.9]} 40.
bxa3 {[%clk 0:00:49.8]} 40... Rxa3+ {[%clk 0:01:13.8]} 41. Ke2 {[%clk
0:00:46.6]} 41... Ra2+ {[%clk 0:01:13.9]} 42. Ke3 {[%clk 0:00:40.6]} 42... Rxh2
{[%clk 0:01:14.8]} 43. g4 {[%clk 0:00:40]} 43... fxg4 {[%clk 0:01:12.2]} 44.
Kxe4 {[%clk 0:00:38.3]} 44... Re2+ {[%clk 0:01:11.2]} 45. Kf5 {[%clk 0:00:37.3]}
45... g3 {[%clk 0:01:11.1]} 46. Rd1 {[%clk 0:00:31.7]} 46... g2 {[%clk
0:01:10.6]} 47. Rg1 {[%clk 0:00:29.7]} 47... Kxd5 {[%clk 0:01:09.9]} 48. Kg4
{[%clk 0:00:29.5]} 48... Ke4 {[%clk 0:01:09]} 49. f5 {[%clk 0:00:26.9]} 49... f6
{[%clk 0:01:04.8]} 50. Rb1 {[%clk 0:00:21.3]} 50... Ke3 {[%clk 0:00:59.5]} 51.
Kg3 {[%clk 0:00:17.8]} 51... Ke4 {[%clk 0:00:54.2]} 52. Kg4 {[%clk 0:00:15.1]}
52... Rd2 {[%clk 0:00:52.2]} 53. Re1+ {[%clk 0:00:12.9]} 53... Kd3 {[%clk
0:00:52.2]} 54. Kg3 {[%clk 0:00:09.7]} 54... Re2 {[%clk 0:00:44.6]} 55. Rd1+
{[%clk 0:00:08.1]} 55... Ke3 {[%clk 0:00:43.4]} 56. Rb1 {[%clk 0:00:06.8]} 56...
Ke4 {[%clk 0:00:38.7]} 57. Kg4 {[%clk 0:00:03]} 1/2-1/2

[Event "*** Titled Tuesday Blitz"]
[Site "Chess.com"]
[Date "2021.02.09"]
[Round "6"]
[White "eljanov"]
[Black "AndrewMaco"]
[Result "1-0"]
[WhiteElo "2909"]
[BlackElo "2680"]
[TimeControl "180+1"]
[EndTime "11:08:59 PST"]
[Termination "eljanov won on time"]

1. Nf3 {[%clk 0:03:00.6]} 1... Nf6 {[%clk 0:02:59.5]} 2. g3 {[%clk 0:03:00.4]}
2... b5 {[%clk 0:02:55.4]} 3. Bg2 {[%clk 0:02:58.7]} 3... Bb7 {[%clk 0:02:56]}
4. O-O {[%clk 0:02:59.2]} 4... e6 {[%clk 0:02:56.7]} 5. d4 {[%clk 0:02:58.3]}
5... Be7 {[%clk 0:02:57]} 6. Qd3 {[%clk 0:02:45.2]} 6... a6 {[%clk 0:02:54.5]}
7. Re1 {[%clk 0:02:42.3]} 7... O-O {[%clk 0:02:53.1]} 8. e4 {[%clk 0:02:42.1]}
8... d6 {[%clk 0:02:50.3]} 9. Bg5 {[%clk 0:02:24.9]} 9... Nbd7 {[%clk
0:02:49.1]} 10. Nbd2 {[%clk 0:02:13.9]} 10... h6 {[%clk 0:02:41.9]} 11. Bxf6
{[%clk 0:02:14.1]} 11... Nxf6 {[%clk 0:02:36.4]} 12. c3 {[%clk 0:02:10.1]} 12...
c5 {[%clk 0:02:34.8]} 13. Qe2 {[%clk 0:02:04.4]} 13... Re8 {[%clk 0:02:31.6]}
14. Rad1 {[%clk 0:02:02.1]} 14... Qb6 {[%clk 0:02:31.2]} 15. e5 {[%clk
0:01:56.1]} 15... dxe5 {[%clk 0:02:16.1]} 16. dxe5 {[%clk 0:01:55.8]} 16... Nd5
{[%clk 0:02:14.8]} 17. Ne4 {[%clk 0:01:44]} 17... Rad8 {[%clk 0:02:11.5]} 18.
Rd2 {[%clk 0:01:44]} 18... Rd7 {[%clk 0:01:52.4]} 19. Red1 {[%clk 0:01:43.7]}
19... Red8 {[%clk 0:01:52.6]} 20. h4 {[%clk 0:01:42.4]} 20... Qc7 {[%clk
0:01:46.2]} 21. h5 {[%clk 0:01:34.3]} 21... Nb6 {[%clk 0:01:40.1]} 22. Rxd7
{[%clk 0:01:22.6]} 22... Rxd7 {[%clk 0:01:40.2]} 23. Rxd7 {[%clk 0:01:20.1]}
23... Nxd7 {[%clk 0:01:39.8]} 24. Ned2 {[%clk 0:01:20.3]} 24... c4 {[%clk
0:01:32.6]} 25. Qe3 {[%clk 0:01:14.8]} 25... Bc5 {[%clk 0:01:30.4]} 26. Qf4
{[%clk 0:01:15.2]} 26... f6 {[%clk 0:00:50.7]} 27. Ne4 {[%clk 0:00:59.6]} 27...
Nxe5 {[%clk 0:00:31.2]} 28. Nxe5 {[%clk 0:00:56.8]} 28... fxe5 {[%clk
0:00:28.3]} 29. Qg4 {[%clk 0:00:57.4]} 29... Bf8 {[%clk 0:00:20.5]} 30. Qxe6+
{[%clk 0:00:41]} 30... Kh8 {[%clk 0:00:20.3]} 31. Qf5 {[%clk 0:00:39.9]} 31...
Kg8 {[%clk 0:00:20.2]} 32. Qg6 {[%clk 0:00:31.5]} 32... Kh8 {[%clk 0:00:16.9]}
33. Qe8 {[%clk 0:00:26.1]} 33... Qe7 {[%clk 0:00:14.8]} 34. Qb8 {[%clk
0:00:26.2]} 34... Bd5 {[%clk 0:00:10.9]} 35. Nd2 {[%clk 0:00:23.4]} 35... Bf7
{[%clk 0:00:10.9]} 36. Nf3 {[%clk 0:00:19.2]} 36... Bxh5 {[%clk 0:00:09.9]} 37.
Nxe5 {[%clk 0:00:19.5]} 37... Be8 {[%clk 0:00:05.5]} 38. f4 {[%clk 0:00:17.9]}
38... g5 {[%clk 0:00:04.6]} 39. Qb6 {[%clk 0:00:16.2]} 39... Qc5+ {[%clk
0:00:04.5]} 40. Qxc5 {[%clk 0:00:16]} 40... Bxc5+ {[%clk 0:00:05.4]} 41. Kf1
{[%clk 0:00:16.6]} 41... Kg7 {[%clk 0:00:05.9]} 42. Ke2 {[%clk 0:00:14.8]} 42...
Kf6 {[%clk 0:00:05.5]} 43. Bc6 {[%clk 0:00:12.7]} 43... Bh5+ {[%clk 0:00:04.5]}
44. Ke1 {[%clk 0:00:12]} 44... Bd6 {[%clk 0:00:03.2]} 45. Bb7 {[%clk 0:00:06.6]}
1-0

[Event "*** Titled Tuesday Blitz"]
[Site "Chess.com"]
[Date "2021.02.09"]
[Round "6"]
[White "ckgchess"]
[Black "Brave_spirit12"]
[Result "1-0"]
[WhiteElo "2722"]
[BlackElo "2488"]
[TimeControl "180+1"]
[EndTime "11:09:00 PST"]
[Termination "ckgchess won on time"]

1. e4 {[%clk 0:03:00.9]} 1... e6 {[%clk 0:02:58.2]} 2. d3 {[%clk 0:03:00.6]}
2... d5 {[%clk 0:02:57.7]} 3. Nd2 {[%clk 0:03:01.5]} 3... Nc6 {[%clk 0:02:57.9]}
4. Ngf3 {[%clk 0:03:01.4]} 4... Nf6 {[%clk 0:02:57.9]} 5. g3 {[%clk 0:03:01.3]}
5... dxe4 {[%clk 0:02:57.9]} 6. dxe4 {[%clk 0:03:02.2]} 6... e5 {[%clk
0:02:58.3]} 7. Bg2 {[%clk 0:03:02.7]} 7... Bc5 {[%clk 0:02:58.8]} 8. O-O {[%clk
0:03:03.1]} 8... O-O {[%clk 0:02:59.3]} 9. Qe2 {[%clk 0:02:57.7]} 9... Qe7
{[%clk 0:02:58.8]} 10. c3 {[%clk 0:02:57.2]} 10... a5 {[%clk 0:02:59.2]} 11. a4
{[%clk 0:02:53.6]} 11... b6 {[%clk 0:02:58.8]} 12. Nc4 {[%clk 0:02:42.6]} 12...
Ba6 {[%clk 0:02:55.6]} 13. b3 {[%clk 0:02:43.1]} 13... Rad8 {[%clk 0:02:49.8]}
14. Nh4 {[%clk 0:02:25.9]} 14... Qe6 {[%clk 0:02:43.6]} 15. Nf5 {[%clk
0:02:23.1]} 15... g6 {[%clk 0:02:21.8]} 16. Nh6+ {[%clk 0:02:16.5]} 16... Kg7
{[%clk 0:02:20.5]} 17. Bg5 {[%clk 0:02:17.4]} 17... Rd7 {[%clk 0:02:09.8]} 18.
h4 {[%clk 0:02:06.5]} 18... Ng8 {[%clk 0:01:33.6]} 19. Nxg8 {[%clk 0:02:06.4]}
19... Kxg8 {[%clk 0:01:32.6]} 20. Kh2 {[%clk 0:02:07]} 20... Ne7 {[%clk
0:01:25.6]} 21. Bh3 {[%clk 0:02:02.3]} 21... f5 {[%clk 0:01:25.7]} 22. exf5
{[%clk 0:02:02.2]} 22... Nxf5 {[%clk 0:01:24.7]} 23. Rae1 {[%clk 0:01:48.3]}
23... Bxc4 {[%clk 0:01:06.1]} 24. bxc4 {[%clk 0:01:47.3]} 24... Kg7 {[%clk
0:00:57]} 25. Qxe5+ {[%clk 0:01:35.8]} 25... Qxe5 {[%clk 0:00:55.1]} 26. Rxe5
{[%clk 0:01:36.7]} 26... h6 {[%clk 0:00:54.2]} 27. Bf4 {[%clk 0:01:30.5]} 27...
Rd3 {[%clk 0:00:51.2]} 28. h5 {[%clk 0:01:10.6]} 28... Nh4 {[%clk 0:00:37]} 29.
Rd5 {[%clk 0:00:35.3]} 29... Nf3+ {[%clk 0:00:26.1]} 30. Kg2 {[%clk 0:00:33.7]}
30... Rxc3 {[%clk 0:00:17.9]} 31. hxg6 {[%clk 0:00:22.4]} 31... Nh4+ {[%clk
0:00:11.4]} 32. Kh2 {[%clk 0:00:19.8]} 32... Nf3+ {[%clk 0:00:11.4]} 33. Kh1
{[%clk 0:00:19.3]} 33... Kxg6 {[%clk 0:00:10.6]} 34. Bg4 {[%clk 0:00:14]} 34...
Ng5 {[%clk 0:00:09.2]} 35. Kg2 {[%clk 0:00:12.5]} 35... Rxc4 {[%clk 0:00:07.9]}
36. Re1 {[%clk 0:00:04.9]} 36... Rxa4 {[%clk 0:00:07.1]} 37. Be2 {[%clk
0:00:04.6]} 37... Ne4 {[%clk 0:00:05.5]} 38. Bd3 {[%clk 0:00:04.1]} 38... Re8
{[%clk 0:00:06.1]} 39. Kf3 {[%clk 0:00:03.1]} 39... Ra3 {[%clk 0:00:04.8]} 40.
Rxe4 {[%clk 0:00:03.4]} 40... Rxe4 {[%clk 0:00:03.5]} 41. Kxe4 {[%clk
0:00:04.3]} 41... a4 {[%clk 0:00:02.1]} 42. Bxc7 {[%clk 0:00:04]} 42... Kg7
{[%clk 0:00:02.4]} 43. Be5+ {[%clk 0:00:04.1]} 43... Kf7 {[%clk 0:00:02.3]} 44.
Bd6 {[%clk 0:00:05]} 1-0

[Event "*** Titled Tuesday Blitz"]
[Site "Chess.com"]
[Date "2021.02.09"]
[Round "6"]
[White "ZarinaShafigullina"]
[Black "maximnovik"]
[Result "1-0"]
[WhiteElo "2430"]
[BlackElo "2577"]
[TimeControl "180+1"]
[EndTime "11:09:00 PST"]
[Termination "ZarinaShafigullina won on time"]

1. d4 {[%clk 0:03:00.9]} 1... Nf6 {[%clk 0:02:30.1]} 2. Nf3 {[%clk 0:03:01.8]}
2... g6 {[%clk 0:02:30.5]} 3. g3 {[%clk 0:03:02.5]} 3... Bg7 {[%clk 0:02:30.8]}
4. Bg2 {[%clk 0:03:03.4]} 4... d5 {[%clk 0:02:31.2]} 5. O-O {[%clk 0:03:03.7]}
5... O-O {[%clk 0:02:31.7]} 6. c4 {[%clk 0:03:03.6]} 6... dxc4 {[%clk
0:02:31.9]} 7. Ne5 {[%clk 0:03:02.3]} 7... Nc6 {[%clk 0:02:26.7]} 8. Nxc6 {[%clk
0:02:52.6]} 8... bxc6 {[%clk 0:02:25.7]} 9. Na3 {[%clk 0:02:49.1]} 9... Be6
{[%clk 0:01:54.4]} 10. Bxc6 {[%clk 0:02:36.2]} 10... Rb8 {[%clk 0:01:54.2]} 11.
Qa4 {[%clk 0:02:34.7]} 11... Qxd4 {[%clk 0:01:47.7]} 12. Be3 {[%clk 0:02:31.3]}
12... Qxb2 {[%clk 0:01:39.3]} 13. Nxc4 {[%clk 0:02:30.9]} 13... Qxe2 {[%clk
0:01:36.4]} 14. Nd2 {[%clk 0:02:07.9]} 14... Qh5 {[%clk 0:01:21]} 15. Bxa7
{[%clk 0:01:44.8]} 15... Ra8 {[%clk 0:01:20.9]} 16. Bxa8 {[%clk 0:01:22.4]}
16... Rxa8 {[%clk 0:01:19.3]} 17. Rab1 {[%clk 0:01:22.5]} 17... Qd5 {[%clk
0:00:37.7]} 18. Qd4 {[%clk 0:01:08.5]} 18... Rxa7 {[%clk 0:00:34.4]} 19. Qxa7
{[%clk 0:00:46.4]} 19... Qxd2 {[%clk 0:00:34.3]} 20. Rb8+ {[%clk 0:00:43.5]}
20... Bf8 {[%clk 0:00:33.4]} 21. Qa8 {[%clk 0:00:35.2]} 21... Nd7 {[%clk
0:00:31.7]} 22. Rd8 {[%clk 0:00:33.7]} 22... Kg7 {[%clk 0:00:24.7]} 23. Qa7
{[%clk 0:00:16.6]} 23... Qc2 {[%clk 0:00:21.4]} 24. Qe3 {[%clk 0:00:14.5]} 24...
Bf5 {[%clk 0:00:16.7]} 25. Re1 {[%clk 0:00:10.2]} 25... Nf6 {[%clk 0:00:15.9]}
26. Qe5 {[%clk 0:00:09]} 26... e6 {[%clk 0:00:15.4]} 27. Rc8 {[%clk 0:00:08.3]}
27... Bd6 {[%clk 0:00:15]} 28. Qe2 {[%clk 0:00:07.6]} 28... Nd5 {[%clk
0:00:14.3]} 29. Qxc2 {[%clk 0:00:07.4]} 29... Bxc2 {[%clk 0:00:14.7]} 30. Rc1
{[%clk 0:00:07.7]} 30... Bd3 {[%clk 0:00:14.7]} 31. a4 {[%clk 0:00:07.4]} 31...
c5 {[%clk 0:00:13.7]} 32. a5 {[%clk 0:00:07.3]} 32... c4 {[%clk 0:00:13.3]} 33.
a6 {[%clk 0:00:07.6]} 33... Nb6 {[%clk 0:00:12.6]} 34. Rc6 {[%clk 0:00:06.5]}
34... Be4 {[%clk 0:00:08.4]} 35. Rxd6 {[%clk 0:00:06]} 35... Nc8 {[%clk
0:00:07]} 36. Rd8 {[%clk 0:00:05.7]} 36... Na7 {[%clk 0:00:06.5]} 37. Rd7 {[%clk
0:00:05.9]} 37... Nb5 {[%clk 0:00:05.7]} 38. a7 {[%clk 0:00:06.3]} 38... Bc6
{[%clk 0:00:05.2]} 39. Rd6 {[%clk 0:00:05]} 39... Nxd6 {[%clk 0:00:02.2]} 40.
Rd1 {[%clk 0:00:04]} 40... Nb5 {[%clk 0:00:01.1]} 41. Rd8 {[%clk 0:00:03.9]}
41... c3 {[%clk 0:00:01.2]} 42. a8=Q {[%clk 0:00:03.9]} 1-0

[Event "*** Titled Tuesday Blitz"]
[Site "Chess.com"]
[Date "2021.02.09"]
[Round "6"]
[White "Nathan_Filgueiras"]
[Black "FGHSMN"]
[Result "0-1"]
[WhiteElo "2444"]
[BlackElo "2621"]
[TimeControl "180+1"]
[EndTime "11:09:00 PST"]
[Termination "FGHSMN won by resignation"]

1. e4 {[%clk 0:03:00.9]} 1... c5 {[%clk 0:02:57.8]} 2. Nf3 {[%clk 0:03:00.9]}
2... e6 {[%clk 0:02:57.5]} 3. d4 {[%clk 0:03:01.3]} 3... cxd4 {[%clk 0:02:58.4]}
4. Nxd4 {[%clk 0:03:02.2]} 4... a6 {[%clk 0:02:58.4]} 5. Bd3 {[%clk 0:03:01.8]}
5... Nf6 {[%clk 0:02:57.9]} 6. O-O {[%clk 0:03:01.6]} 6... Qc7 {[%clk
0:02:58.2]} 7. Qe2 {[%clk 0:03:01.5]} 7... d6 {[%clk 0:02:58]} 8. c4 {[%clk
0:03:01.3]} 8... Be7 {[%clk 0:02:57.9]} 9. Nc3 {[%clk 0:03:01.1]} 9... O-O
{[%clk 0:02:55.9]} 10. Be3 {[%clk 0:03:01.6]} 10... Nbd7 {[%clk 0:02:51.8]} 11.
Rac1 {[%clk 0:02:59.8]} 11... b6 {[%clk 0:02:48.7]} 12. f4 {[%clk 0:02:59.8]}
12... Re8 {[%clk 0:02:46.5]} 13. f5 {[%clk 0:02:59.1]} 13... Ne5 {[%clk
0:02:41.8]} 14. b3 {[%clk 0:02:53.2]} 14... Qd7 {[%clk 0:02:36.7]} 15. Rcd1
{[%clk 0:02:41.9]} 15... Bb7 {[%clk 0:02:32.4]} 16. Bb1 {[%clk 0:02:41.7]} 16...
Rac8 {[%clk 0:02:27.5]} 17. h3 {[%clk 0:02:41.4]} 17... b5 {[%clk 0:02:25.8]}
18. g4 {[%clk 0:02:09.2]} 18... b4 {[%clk 0:02:14.2]} 19. fxe6 {[%clk
0:02:01.7]} 19... fxe6 {[%clk 0:02:12.5]} 20. Nd5 {[%clk 0:02:02.3]} 20... exd5
{[%clk 0:01:59.4]} 21. exd5 {[%clk 0:02:03.2]} 21... g6 {[%clk 0:01:26.1]} 22.
Qg2 {[%clk 0:01:51.9]} 22... Rf8 {[%clk 0:01:21.3]} 23. Ne6 {[%clk 0:01:49.7]}
23... Qxe6 {[%clk 0:01:20.7]} 24. dxe6 {[%clk 0:01:47.3]} 24... Bxg2 {[%clk
0:01:21.6]} 25. Kxg2 {[%clk 0:01:48.1]} 25... Ne8 {[%clk 0:01:17.2]} 26. Be4
{[%clk 0:01:39.1]} 26... Rxf1 {[%clk 0:01:16]} 27. Rxf1 {[%clk 0:01:39]} 27...
Nc7 {[%clk 0:01:16.2]} 28. Bd4 {[%clk 0:01:26.2]} 28... Rf8 {[%clk 0:01:11.8]}
29. Rd1 {[%clk 0:01:16.8]} 29... Rd8 {[%clk 0:00:42.4]} 30. Bb6 {[%clk
0:01:05.1]} 30... Rc8 {[%clk 0:00:39.5]} 31. c5 {[%clk 0:00:53.9]} 31... d5
{[%clk 0:00:30.3]} 32. Bxd5 {[%clk 0:00:44.6]} 32... Nxd5 {[%clk 0:00:31.2]} 33.
Rxd5 {[%clk 0:00:44]} 33... Nc6 {[%clk 0:00:31.8]} 34. Rd7 {[%clk 0:00:35.3]}
34... Kg7 {[%clk 0:00:32]} 35. Bc7 {[%clk 0:00:25.3]} 35... Kf6 {[%clk
0:00:28.8]} 36. Bd6 {[%clk 0:00:25.6]} 36... Kxe6 {[%clk 0:00:28.3]} 37. Rb7
{[%clk 0:00:16.2]} 37... Bxd6 {[%clk 0:00:26.9]} 38. cxd6 {[%clk 0:00:17.1]}
38... Kxd6 {[%clk 0:00:27.8]} 39. Rxh7 {[%clk 0:00:17.1]} 39... Ne5 {[%clk
0:00:28.5]} 40. Ra7 {[%clk 0:00:16.3]} 40... Rc2+ {[%clk 0:00:29]} 41. Kg3
{[%clk 0:00:15.7]} 41... Rxa2 {[%clk 0:00:29.9]} 42. Rb7 {[%clk 0:00:16]} 42...
Ra3 {[%clk 0:00:30.1]} 43. Kf4 {[%clk 0:00:14.8]} 43... Rxb3 {[%clk 0:00:28.1]}
44. Rb6+ {[%clk 0:00:15.1]} 44... Kd5 {[%clk 0:00:28.4]} 45. Rxa6 {[%clk
0:00:15.7]} 45... Rf3+ {[%clk 0:00:26.2]} 46. Kg5 {[%clk 0:00:14.3]} 46... Rxh3
{[%clk 0:00:27.1]} 47. Ra5+ {[%clk 0:00:12.8]} 47... Kd4 {[%clk 0:00:25.6]} 48.
Rb5 {[%clk 0:00:12.3]} 48... b3 {[%clk 0:00:25]} 49. Kf4 {[%clk 0:00:10.6]}
49... Nd3+ {[%clk 0:00:22.4]} 50. Kg5 {[%clk 0:00:09.9]} 50... b2 {[%clk
0:00:22.8]} 51. Kxg6 {[%clk 0:00:10.1]} 51... Kc3 {[%clk 0:00:23.3]} 52. g5
{[%clk 0:00:09.9]} 52... Nb4 {[%clk 0:00:23.3]} 53. Rc5+ {[%clk 0:00:08.4]}
53... Kb3 {[%clk 0:00:23.5]} 0-1

[Event "*** Titled Tuesday Blitz"]
[Site "Chess.com"]
[Date "2021.02.09"]
[Round "6"]
[White "Mbneu"]
[Black "MuhittinBuker"]
[Result "1-0"]
[WhiteElo "2282"]
[BlackElo "2047"]
[TimeControl "180+1"]
[EndTime "11:09:00 PST"]
[Termination "Mbneu won on time"]

1. d4 {[%clk 0:03:00.9]} 1... Nf6 {[%clk 0:02:59]} 2. c4 {[%clk 0:03:01]} 2...
e6 {[%clk 0:02:59.4]} 3. Nc3 {[%clk 0:03:00.7]} 3... Bb4 {[%clk 0:02:59.8]} 4.
Bg5 {[%clk 0:03:01.2]} 4... c5 {[%clk 0:02:58.9]} 5. d5 {[%clk 0:03:00.9]} 5...
O-O {[%clk 0:02:58.1]} 6. e3 {[%clk 0:02:59.8]} 6... exd5 {[%clk 0:02:58.2]} 7.
cxd5 {[%clk 0:02:59.4]} 7... d6 {[%clk 0:02:58.4]} 8. Nf3 {[%clk 0:02:58.3]}
8... h6 {[%clk 0:02:58.3]} 9. Bh4 {[%clk 0:02:57.4]} 9... Bg4 {[%clk 0:02:58.1]}
10. Be2 {[%clk 0:02:56.8]} 10... Nbd7 {[%clk 0:02:58.1]} 11. O-O {[%clk
0:02:56]} 11... a6 {[%clk 0:02:52.5]} 12. Rc1 {[%clk 0:02:44.5]} 12... b5 {[%clk
0:02:51.8]} 13. Nd2 {[%clk 0:02:35.3]} 13... Bxe2 {[%clk 0:02:46.7]} 14. Qxe2
{[%clk 0:02:34.9]} 14... Bxc3 {[%clk 0:02:46.3]} 15. Rxc3 {[%clk 0:02:34.7]}
15... g5 {[%clk 0:02:45.3]} 16. Bg3 {[%clk 0:02:34.3]} 16... Nxd5 {[%clk
0:02:39.7]} 17. Rd3 {[%clk 0:02:33.9]} 17... N7f6 {[%clk 0:02:39.6]} 18. e4
{[%clk 0:02:31.8]} 18... Re8 {[%clk 0:02:31.7]} 19. Qf3 {[%clk 0:02:29.1]} 19...
Nf4 {[%clk 0:02:20.8]} 20. Bxf4 {[%clk 0:02:26.5]} 20... gxf4 {[%clk 0:02:20.8]}
21. Qxf4 {[%clk 0:02:27.2]} 21... Kg7 {[%clk 0:02:11.3]} 22. Rg3+ {[%clk
0:02:21.1]} 22... Kh7 {[%clk 0:02:10.9]} 23. Qf5+ {[%clk 0:02:20.7]} 23... Kh8
{[%clk 0:02:08.9]} 24. Rh3 {[%clk 0:02:05.8]} 24... Kg7 {[%clk 0:01:57]} 25.
Rg3+ {[%clk 0:02:05.7]} 25... Kh8 {[%clk 0:01:56.8]} 26. Qf4 {[%clk 0:02:06.2]}
26... Kh7 {[%clk 0:01:53]} 27. Rh3 {[%clk 0:02:05.5]} 27... Ng8 {[%clk
0:01:47.8]} 28. Nf3 {[%clk 0:02:02.5]} 28... Qf6 {[%clk 0:01:29.9]} 29. Qg4
{[%clk 0:01:52]} 29... Qg6 {[%clk 0:01:26.9]} 30. Qh4 {[%clk 0:01:51.4]} 30...
Kh8 {[%clk 0:01:16.4]} 31. Rg3 {[%clk 0:01:48.2]} 31... Qxe4 {[%clk 0:01:09.8]}
32. Qh5 {[%clk 0:01:41.6]} 32... Qh7 {[%clk 0:01:06.9]} 33. Nh4 {[%clk
0:01:29.1]} 33... Re6 {[%clk 0:01:04.8]} 34. Nf5 {[%clk 0:01:26.6]} 34... Rg6
{[%clk 0:01:04.5]} 35. Re1 {[%clk 0:01:20.9]} 35... Rxg3 {[%clk 0:00:56.8]} 36.
hxg3 {[%clk 0:01:19.7]} 36... d5 {[%clk 0:00:51.4]} 37. Re5 {[%clk 0:01:11.2]}
37... Rd8 {[%clk 0:00:48.7]} 38. Qh4 {[%clk 0:01:10.7]} 38... f6 {[%clk
0:00:44.6]} 39. g4 {[%clk 0:01:02.2]} 39... d4 {[%clk 0:00:39.3]} 40. Re7 {[%clk
0:00:43.1]} 40... Qg6 {[%clk 0:00:20.4]} 41. Rg7 {[%clk 0:00:28.8]} 41... Qxg7
{[%clk 0:00:19.3]} 42. Nxg7 {[%clk 0:00:28.6]} 42... Kxg7 {[%clk 0:00:19.9]} 43.
Kf1 {[%clk 0:00:24.7]} 43... d3 {[%clk 0:00:19.9]} 44. Ke1 {[%clk 0:00:24.7]}
44... d2+ {[%clk 0:00:18.9]} 45. Kd1 {[%clk 0:00:24.6]} 45... c4 {[%clk
0:00:19.4]} 46. Qg3 {[%clk 0:00:22.8]} 46... Rd3 {[%clk 0:00:13.2]} 47. Qc7+
{[%clk 0:00:21.9]} 47... Kg6 {[%clk 0:00:12.8]} 48. Qc6 {[%clk 0:00:20.6]} 48...
Ne7 {[%clk 0:00:09.6]} 49. Qxa6 {[%clk 0:00:20.3]} 49... Nd5 {[%clk 0:00:06.3]}
50. Qxb5 {[%clk 0:00:18.5]} 1-0